fUST/lending_fUST_20250105
["ID","MTS","AMOUNT","RATE_DAILY","PERIOD"]
[347670270,1736047842701,-500.0,0.00019178,2]
[347670271,1736047842710,-500.0,0.00019178,2]
[347670272,1736047842719,-500.0,0.00019178,2]
[347670273,1736047842728,-500.0,0.00019178,2]
[347670274,1736047842736,-500.0,0.00019178,2]
[347670275,1736047842745,-500.0,0.00019178,2]
[347670276,1736047842755,-500.0,0.00019178,2]
[347670277,1736047842763,-500.0,0.00019178,2]
[347670278,1736047842772,-1502.22,0.00019178,2]
[347670279,1736047842781,-500.0,0.00019178,2]
[347670280,1736047842790,-500.0,0.00019178,2]
[347670281,1736047842799,-500.0,0.00019178,2]
[347670282,1736047842808,-500.0,0.00019178,2]
[347670283,1736047842818,-500.0,0.00019178,2]
[347670284,1736047842827,-500.0,0.00019178,2]
[347670285,1736047842836,-500.0,0.00019178,2]
[347670286,1736047842846,-500.0,0.00019178,2]
[347670287,1736047842855,-500.0,0.00019178,2]
[347670288,1736047842863,-500.0,0.00019178,2]
[347670289,1736047842872,-500.0,0.00019178,2]
[347670290,1736047842882,-487.84824528,0.00019178,2]
[347670291,1736047842891,-500.0,0.00019178,2]
[347670292,1736047842902,-507.99972818,0.00019178,2]
[347670293,1736047842912,-500.0,0.00019178,2]
[347670294,1736047842922,-501.94450593,0.00019178,2]
[347670295,1736047842931,-737.9,0.00019178,2]
[347670296,1736047842945,-500.0,0.00019178,2]
[347670297,1736047842954,-502.13930385,0.00019178,2]
[347670298,1736047842963,-500.0,0.00019178,2]
[347670299,1736047842972,-500.0,0.00019178,2]
[347670300,1736047842981,-181.765946,0.00019178,2]
[347670301,1736047842990,-181.765946,0.00019178,2]
[347670302,1736047843001,-181.765946,0.00019178,2]
[347670303,1736047843010,-181.765946,0.00019178,2]
[347670304,1736047843019,-181.765946,0.00019178,2]
[347670305,1736047843028,-977.92,0.00019178,2]
[347670306,1736047843038,-181.765946,0.00019178,2]
[347670307,1736047843048,-181.765946,0.00019178,2]
[347670308,1736047843057,-500.0,0.00019178,2]
[347670309,1736047843069,-181.765946,0.00019178,2]
[347670310,1736047843078,-181.765946,0.00019178,2]
[347670311,1736047843087,-500.0,0.00019178,2]
[347670312,1736047843096,-181.765946,0.00019178,2]
[347670313,1736047843105,-181.765946,0.00019178,2]
[347670314,1736047843114,-181.765946,0.00019178,2]
[347670315,1736047843124,-181.765946,0.00019178,2]
[347670316,1736047843133,-181.765946,0.00019178,2]
[347670317,1736047843142,-181.765946,0.00019178,2]
[347670318,1736047843152,-181.765946,0.00019178,2]
[347670319,1736047843161,-181.765946,0.00019178,2]
[347670320,1736047843171,-181.765946,0.00019178,2]
[347670321,1736047843181,-184.907267,0.00019178,2]
[347670322,1736047843190,-1450.22,0.00019178,2]
[347670323,1736047843200,-500.0,0.00019178,2]
[347670324,1736047843209,-513.38509051,0.00019178,2]
[347670325,1736047843350,-151.0,0.00019178,2]
[347670326,1736047843359,-151.0,0.00019178,2]
[347670327,1736047843369,-151.0,0.00019178,2]
[347670328,1736047843378,-151.0,0.00019178,2]
[347670329,1736047843387,-151.0,0.00019178,2]
[347670330,1736047843397,-151.0,0.00019178,2]
[347670332,1736047843406,-151.0,0.00019178,2]
[347670334,1736047843415,-151.0,0.00019178,2]
[347670336,1736047843425,-151.0,0.00019178,2]
[347670338,1736047843434,-151.0,0.00019178,2]
[347670340,1736047843444,-151.0,0.00019178,2]
[347670342,1736047843453,-151.0,0.00019178,2]
[347670344,1736047843463,-151.0,0.00019178,2]
[347670346,1736047843472,-178.174336,0.00019178,2]
[347670348,1736047843482,-151.0,0.00019178,2]
[347670349,1736047843491,-178.174336,0.00019178,2]
[347670350,1736047843500,-151.0,0.00019178,2]
[347670351,1736047843509,-178.174336,0.00019178,2]
[347670352,1736047843518,-500.0,0.00019178,2]
[347670354,1736047843531,-178.174336,0.00019178,2]
[347670356,1736047843542,-151.0,0.00019178,2]
[347670357,1736047843552,-178.174336,0.00019178,2]
[347670358,1736047843561,-151.0,0.00019178,2]
[347670359,1736047843570,-178.174336,0.00019178,2]
[347670360,1736047843580,-151.0,0.00019178,2]
[347670361,1736047843590,-290.57614,0.00019178,2]
[347670362,1736047843599,-178.174336,0.00019178,2]
[347670364,1736047843609,-504.94649811,0.00019178,2]
[347670366,1736047843618,-178.174336,0.00019178,2]
[347670368,1736047843627,-178.174336,0.00019178,2]
[347670370,1736047843636,-151.0,0.00019178,2]
[347670372,1736047843645,-178.174336,0.00019178,2]
[347670374,1736047843654,-151.0,0.00019178,2]
[347670376,1736047843663,-178.174336,0.00019178,2]
[347670377,1736047843672,-151.0,0.00019178,2]
[347670379,1736047843682,-500.0,0.00019178,2]
[347670381,1736047843692,-178.174336,0.00019178,2]
[347670383,1736047843704,-151.0,0.00019178,2]
[347670386,1736047843713,-178.174336,0.00019178,2]
[347670387,1736047843723,-178.174336,0.00019178,2]
[347670389,1736047843732,-178.174336,0.00019178,2]
[347670391,1736047843742,-151.0,0.00019178,2]
[347670393,1736047843751,-178.174336,0.00019178,2]
[347670395,1736047843760,-151.0,0.00019178,2]
[347670397,1736047843769,-151.0,0.00019178,2]
[347670399,1736047843779,-151.0,0.00019178,2]
[347670401,1736047843789,-151.0,0.00019178,2]
[347670403,1736047843798,-151.0,0.00019178,2]
[347670405,1736047843808,-151.0,0.00019178,2]
[347670407,1736047843818,-151.0,0.00019178,2]
[347670409,1736047843827,-500.0,0.00019178,2]
[347670411,1736047843836,-151.0,0.00019178,2]
[347670413,1736047843846,-151.0,0.00019178,2]
[347670415,1736047843855,-151.0,0.00019178,2]
[347670417,1736047843864,-151.0,0.00019178,2]
[347670419,1736047843874,-151.0,0.00019178,2]
[347670421,1736047843883,-151.0,0.00019178,2]
[347670423,1736047843892,-175.529602,0.00019178,2]
[347670425,1736047843902,-500.0,0.00019178,2]
[347670427,1736047843911,-500.0,0.00019178,2]
[347670429,1736047843921,-501.85888958,0.00019178,2]
[347670431,1736047843930,-500.0,0.00019178,2]
[347670433,1736047843939,-605.22,0.00019178,2]
[347670435,1736047843948,-151.0,0.00019178,2]
[347670437,1736047843958,-151.0,0.00019178,2]
[347670439,1736047843968,-500.0,0.00019178,2]
[347670441,1736047843977,-151.0,0.00019178,2]
[347670443,1736047843986,-151.0,0.00019178,2]
[347670445,1736047843995,-151.0,0.00019178,2]
[347670447,1736047844004,-151.0,0.00019178,2]
[347670449,1736047844013,-218.076913,0.00019178,2]
[347670451,1736047844022,-500.0,0.00019178,2]
[347670453,1736047844031,-500.0,0.00019178,2]
[347670455,1736047844041,-522.38,0.00019178,2]
[347670457,1736047844050,-500.0,0.00019178,2]
[347670459,1736047844059,-500.0,0.00019178,2]
[347670461,1736047844068,-500.0,0.00019178,2]
[347670463,1736047844077,-503.6490717,0.00019178,2]
[347670465,1736047844087,-500.0,0.00019178,2]
[347670467,1736047844096,-501.38208423,0.00019178,2]
[347670469,1736047844105,-596.42,0.00019178,2]
[347670471,1736047844116,-501.77856759,0.00019178,2]
[347670473,1736047844125,-501.66809776,0.00019178,2]
[347670475,1736047844135,-504.73007387,0.00019178,2]
[347670477,1736047844144,-500.30937817,0.00019178,2]
[347670479,1736047844154,-500.0,0.00019178,2]
[347670481,1736047844163,-500.0,0.00019178,2]
[347670483,1736047844172,-1027.34,0.00019178,2]
[347670485,1736047844182,-502.08569525,0.00019178,2]
[347670487,1736047844192,-500.0,0.00019178,2]
[347670489,1736047844201,-500.0,0.00019178,2]
[347670491,1736047844210,-151.0,0.00019178,2]
[347670493,1736047844220,-151.0,0.00019178,2]
[347670495,1736047844230,-151.0,0.00019178,2]
[347670497,1736047844239,-501.64584284,0.00019178,2]
[347670499,1736047844249,-500.0,0.00019178,2]
[347670501,1736047844258,-151.0,0.00019178,2]
[347670503,1736047844268,-151.0,0.00019178,2]
[347670505,1736047844277,-151.0,0.00019178,2]
[347670507,1736047844287,-500.0,0.00019178,2]
[347670509,1736047844296,-151.0,0.00019178,2]
[347670511,1736047844305,-151.0,0.00019178,2]
[347670513,1736047844314,-935.0,0.00019178,2]
[347670515,1736047844323,-151.0,0.00019178,2]
[347670517,1736047844333,-151.0,0.00019178,2]
[347670519,1736047844342,-270.037027,0.00019178,2]
[347670521,1736047844352,-151.0,0.00019178,2]
[347670523,1736047844361,-151.0,0.00019178,2]
[347670525,1736047844370,-151.0,0.00019178,2]
[347670526,1736047844379,-151.0,0.00019178,2]
[347670527,1736047844389,-502.80815148,0.00019178,2]
[347670528,1736047844398,-151.0,0.00019178,2]
[347670529,1736047844408,-504.69445165,0.00019178,2]
[347670530,1736047844417,-151.0,0.00019178,2]
[347670532,1736047844426,-158.020237,0.00019178,2]
[347670534,1736047844436,-504.7267382,0.00019178,2]
[347670536,1736047844446,-500.0,0.00019178,2]
[347670538,1736047844455,-500.0,0.00019178,2]
[347670540,1736047844466,-500.0,0.00019178,2]
[347670542,1736047844475,-500.0,0.00019178,2]
[347670544,1736047844485,-151.0,0.00019178,2]
[347670546,1736047844495,-151.0,0.00019178,2]
[347670548,1736047844505,-151.0,0.00019178,2]
[347670550,1736047844514,-151.0,0.00019178,2]
[347670552,1736047844527,-1804.52,0.00019178,2]
[347670554,1736047844536,-151.0,0.00019178,2]
[347670556,1736047844545,-153.180314,0.00019178,2]
[347670558,1736047844555,-642.18697214,0.00019178,2]
[347670560,1736047844564,-500.0,0.00019178,2]
[347670562,1736047844574,-500.0,0.00019178,2]
[347670564,1736047844583,-500.0,0.00019178,2]
[347670566,1736047844593,-500.0,0.00019178,2]
[347670568,1736047844606,-502.2242297,0.00019178,2]
[347670570,1736047844616,-505.02728304,0.00019178,2]
[347670572,1736047844626,-585.79,0.00019178,2]
[347670574,1736047844636,-2208.73,0.00019178,2]
[347670576,1736047844646,-2208.73,0.00019178,2]
[347670579,1736047844655,-1495.75,0.00019178,2]
[347670581,1736047844664,-2208.73,0.00019178,2]
[347670583,1736047844674,-2208.73,0.00019178,2]
[347670585,1736047844684,-2208.73,0.00019178,2]
[347670587,1736047844694,-2208.73,0.00019178,2]
[347670589,1736047844704,-519.11345879,0.00019178,2]
[347670591,1736047844713,-2208.73,0.00019178,2]
[347670592,1736047844722,-501.76394455,0.00019178,2]
[347670595,1736047844732,-2208.73,0.00019178,2]
[347670597,1736047844742,-2208.73,0.00019178,2]
[347670598,1736047844751,-504.87100902,0.00019178,2]
[347670600,1736047844760,-576.07672525,0.00019178,2]
[347670602,1736047844769,-2208.73,0.00019178,2]
[347670605,1736047844779,-2208.73,0.00019178,2]
[347670607,1736047844789,-2208.73,0.00019178,2]
[347670609,1736047844799,-503.16544578,0.00019178,2]
[347670611,1736047844809,-1108.11,0.00019178,2]
[347670612,1736047844819,-2208.73,0.00019178,2]
[347670614,1736047844828,-482.11741117,0.00019178,2]
[347670617,1736047844838,-2208.73,0.00019178,2]
[347670619,1736047844847,-2208.73,0.00019178,2]
[347670620,1736047844857,-503.12192954,0.00019178,2]
[347670622,1736047844866,-2208.73,0.00019178,2]
[347670624,1736047844875,-501.47896686,0.00019178,2]
[347670627,1736047844885,-500.0,0.00019178,2]
[347670629,1736047844894,-3319.14,0.00019178,2]
[347670631,1736047844904,-5128.79,0.00019178,2]
[347670633,1736047844913,-500.0,0.00019178,2]
[347670635,1736047844923,-504.24305927,0.00019178,2]
[347670637,1736047844932,-1073.74,0.00019178,2]
[347670639,1736047844942,-504.20333281,0.00019178,2]
[347670641,1736047844951,-501.05656233,0.00019178,2]
[347670643,1736047844962,-151.0,0.00019178,2]
[347670645,1736047844972,-151.0,0.00019178,2]
[347670647,1736047844981,-500.0,0.00019178,2]
[347670649,1736047844991,-151.0,0.00019178,2]
[347670651,1736047845001,-151.0,0.00019178,2]
[347670653,1736047845010,-498.86658393,0.00019178,2]
[347670655,1736047845019,-151.0,0.00019178,2]
[347670657,1736047845028,-151.0,0.00019178,2]
[347670659,1736047845038,-151.0,0.00019178,2]
[347670661,1736047845048,-500.0,0.00019178,2]
[347670663,1736047845057,-151.0,0.00019178,2]
[347670665,1736047845067,-151.0,0.00019178,2]
[347670667,1736047845076,-503.77874944,0.00019178,2]
[347670669,1736047845086,-151.0,0.00019178,2]
[347670671,1736047845095,-151.0,0.00019178,2]
[347670673,1736047845105,-151.0,0.00019178,2]
[347670675,1736047845114,-500.0,0.00019178,2]
[347670677,1736047845124,-151.0,0.00019178,2]
[347670679,1736047845133,-151.0,0.00019178,2]
[347670681,1736047845143,-189.334847,0.00019178,2]
[347670683,1736047845153,-500.0,0.00019178,2]
[347670685,1736047845162,-500.0,0.00019178,2]
[347670687,1736047845172,-874.77,0.00019178,2]
[347670689,1736047845181,-900.21,0.00019178,2]
[347670691,1736047845190,-529.95,0.00019178,2]
[347670693,1736047845199,-500.0,0.00019178,2]
[347670695,1736047845209,-42518.38,0.00019178,2]
[347670697,1736047845218,-504.30063642,0.00019178,2]
[347670699,1736047845228,-4229.34,0.00019178,2]
[347670701,1736047845237,-500.0,0.00019178,2]
[347670703,1736047845246,-170.50657534,0.00019178,2]
[347670705,1736047845255,-500.0,0.00019178,2]
[347670707,1736047845265,-1764.12,0.00019178,2]
[347670709,1736047845274,-502.3840942,0.00019178,2]
[347670711,1736047845284,-504.5474997,0.00019178,2]
[347670713,1736047845293,-742.48,0.00019178,2]
[347670715,1736047845303,-500.0,0.00019178,2]
[347670717,1736047845312,-502.68462143,0.00019178,2]
[347670719,1736047845323,-503.12175625,0.00019178,2]
[347670721,1736047845332,-1347.85,0.00019178,2]
[347670723,1736047845341,-751.36,0.00019178,2]
[347670725,1736047845350,-501.09561387,0.00019178,2]
[347670727,1736047845359,-500.0,0.00019178,2]
[347670729,1736047845370,-2223.11,0.00019178,2]
[347670731,1736047845379,-500.0,0.00019178,2]
[347670733,1736047845389,-5173.51,0.00019178,2]
[347670736,1736047845399,-500.0,0.00019178,2]
[347670737,1736047845408,-500.0,0.00019178,2]
[347670739,1736047845418,-2312.18,0.00019178,2]
[347670741,1736047845427,-544.89,0.00019178,2]
[347670743,1736047845437,-500.0,0.00019178,2]
[347670745,1736047845447,-151.0,0.00019178,2]
[347670747,1736047845456,-503.15664519,0.00019178,2]
[347670749,1736047845465,-272.308039,0.00019178,2]
[347670751,1736047845474,-1957.34,0.00019178,2]
[347670753,1736047845483,-503.04994333,0.00019178,2]
[347670755,1736047845492,-500.0,0.00019178,2]
[347670757,1736047845502,-500.0,0.00019178,2]
[347670759,1736047845511,-151.0,0.00019178,2]
[347670761,1736047845521,-151.0,0.00019178,2]
[347670763,1736047845530,-151.0,0.00019178,2]
[347670765,1736047845540,-151.0,0.00019178,2]
[347670767,1736047845549,-500.0,0.00019178,2]
[347670770,1736047845559,-151.0,0.00019178,2]
[347670771,1736047845569,-504.23286663,0.00019178,2]
[347670774,1736047845578,-151.0,0.00019178,2]
[347670776,1736047845588,-500.0,0.00019178,2]
[347670778,1736047845597,-151.0,0.00019178,2]
[347670780,1736047845606,-151.0,0.00019178,2]
[347670782,1736047845616,-285.88014,0.00019178,2]
[347670784,1736047845625,-600.52,0.00019178,2]
[347670786,1736047845635,-500.0,0.00019178,2]
[347670788,1736047845645,-500.0,0.00019178,2]
[347670790,1736047845654,-504.50798829,0.00019178,2]
[347670792,1736047845664,-500.0,0.00019178,2]
[347670794,1736047845673,-502.01248074,0.00019178,2]
[347670796,1736047845682,-500.0,0.00019178,2]
[347670798,1736047845691,-505.15825585,0.00019178,2]
[347670800,1736047845701,-500.0,0.00019178,2]
[347670802,1736047845710,-1260.94,0.00019178,2]
[347670804,1736047845720,-508.35766284,0.00019178,2]
[347670806,1736047845730,-500.0,0.00019178,2]
[347670808,1736047845739,-1941.33,0.00019178,2]
[347670810,1736047845748,-3562.92,0.00019178,2]
[347670812,1736047845757,-500.0,0.00019178,2]
[347670814,1736047845766,-3356.38,0.00019178,2]
[347670816,1736047845775,-500.0,0.00019178,2]
[347670817,1736047845784,-500.0,0.00019178,2]
[347670819,1736047845793,-705.22,0.00019178,2]
[347670821,1736047845803,-500.0,0.00019178,2]
[347670823,1736047845812,-984.19,0.00019178,2]
[347670825,1736047845822,-501.76865307,0.00019178,2]
[347670827,1736047845831,-503.54195776,0.00019178,2]
[347670829,1736047845840,-681.49,0.00019178,2]
[347670831,1736047845849,-500.0,0.00019178,2]
[347670833,1736047845859,-500.0,0.00019178,2]
[347670835,1736047845869,-501.42069948,0.00019178,2]
[347670837,1736047845879,-500.0,0.00019178,2]
[347670839,1736047845889,-2826.37,0.00019178,2]
[347670841,1736047845898,-500.0,0.00019178,2]
[347670843,1736047845908,-504.33887521,0.00019178,2]
[347670845,1736047845917,-500.0,0.00019178,2]
[347670847,1736047845927,-1081.33,0.00019178,2]
[347670849,1736047845937,-1718.24,0.00019178,2]
[347670851,1736047845946,-500.0,0.00019178,2]
[347670853,1736047845955,-678.19,0.00019178,2]
[347670855,1736047845965,-1799.45,0.00019178,2]
[347670857,1736047845974,-614.50255873,0.00019178,2]
[347670859,1736047845983,-150.06,0.00019178,2]
[347670861,1736047845993,-578.02395289,0.00019178,2]
[347670863,1736047846003,-501.87819601,0.00019178,2]
[347670865,1736047846013,-347.67778252,0.00019178,2]
[347670867,1736047846022,-1140.11,0.00019178,2]
[347670869,1736047846032,-150.06,0.00019178,2]
[347670871,1736047846042,-507.22431268,0.00019178,2]
[347670873,1736047846051,-150.06,0.00019178,2]
[347670875,1736047846060,-666.88,0.00019178,2]
[347670877,1736047846070,-150.06,0.00019178,2]
[347670878,1736047846079,-502.73897616,0.00019178,2]
[347670879,1736047846088,-150.06,0.00019178,2]
[347670880,1736047846097,-530.97212748,0.00019178,2]
[347670881,1736047846106,-1343.58,0.00019178,2]
[347670882,1736047846115,-1360.54,0.00019178,2]
[347670883,1736047846124,-500.0,0.00019178,2]
[347670884,1736047846134,-1532.01,0.00019178,2]
[347670885,1736047846143,-500.0,0.00019178,2]
[347670886,1736047846152,-500.0,0.00019178,2]
[347670887,1736047846161,-432.48623747,0.00019178,2]
[347670888,1736047846170,-500.0,0.00019178,2]
[347670889,1736047846179,-500.0,0.00019178,2]
[347670890,1736047846188,-767.32,0.00019178,2]
[347670891,1736047846197,-150.06,0.00019178,2]
[347670892,1736047846206,-150.06,0.00019178,2]
[347670893,1736047846215,-607.1,0.00019178,2]
[347670895,1736047846224,-510.6716708,0.00019178,2]
[347670897,1736047846233,-554.28,0.00019178,2]
[347670899,1736047846243,-150.06,0.00019178,2]
[347670901,1736047846252,-500.0,0.00019178,2]
[347670903,1736047846261,-500.0,0.00019178,2]
[347670905,1736047846270,-8007.94,0.00019178,2]
[347670906,1736047846279,-8554.69,0.00019178,2]
[347670908,1736047846288,-266.90612897,0.00019178,2]
[347670910,1736047846298,-872.7,0.00019178,2]
[347670912,1736047846308,-500.0,0.00019178,2]
[347670914,1736047846317,-715.56,0.00019178,2]
[347670916,1736047846326,-1142.73,0.00019178,2]
[347670918,1736047846335,-167.46744,0.00019178,2]
[347670920,1736047846344,-302.9394212,0.0001919,2]
[347670922,1736047846354,-247.4,0.00019193,2]
[347670924,1736047846363,-524.29,0.000192,2]
[347670926,1736047846371,-13973.68,0.000192,2]
[347670928,1736047846381,-18106.25,0.000192,2]
[347670930,1736047846390,-7805.41,0.000192,2]
[347670932,1736047846399,-181.765946,0.000192,2]
[347670934,1736047846408,-181.765943,0.000192,2]
[347670936,1736047846417,-286.0,0.00019256,2]
[347670938,1736047846426,-159.0,0.00019256,2]
[347670940,1736047846435,-286.0,0.00019256,2]
[347670942,1736047846444,-159.0,0.00019256,2]
[347670944,1736047846453,-286.0,0.00019256,2]
[347670946,1736047846462,-159.0,0.00019256,2]
[347670948,1736047846471,-286.0,0.00019256,2]
[347670950,1736047846481,-159.0,0.00019256,2]
[347670952,1736047846490,-159.0,0.00019256,2]
[347670954,1736047846498,-286.0,0.00019256,2]
[347670956,1736047846508,-160.62,0.00019256,2]
[347670958,1736047846517,-286.0,0.00019256,2]
[347670961,1736047846532,-286.0,0.00019256,2]
[347670963,1736047846541,-286.0,0.00019256,2]
[347670965,1736047846550,-286.0,0.00019256,2]
[347670967,1736047846559,-286.0,0.00019256,2]
[347670969,1736047846570,-286.0,0.00019256,2]
[347670971,1736047846579,-286.0,0.00019256,2]
[347670973,1736047846589,-286.0,0.00019256,2]
[347670989,1736047846598,-286.0,0.00019256,2]
[347670991,1736047846739,-286.0,0.00019256,2]
[347670993,1736047846749,-286.0,0.00019256,2]
[347670995,1736047846759,-286.0,0.00019256,2]
[347670997,1736047846768,-286.0,0.00019256,2]
[347670999,1736047846777,-286.0,0.00019256,2]
[347671001,1736047846787,-286.0,0.00019256,2]
[347671003,1736047846796,-286.0,0.00019256,2]
[347671005,1736047846805,-286.0,0.00019256,2]
[347671007,1736047846814,-286.0,0.00019256,2]
[347671009,1736047846827,-286.0,0.00019256,2]
[347671011,1736047846837,-286.0,0.00019256,2]
[347671013,1736047846847,-286.0,0.00019256,2]
[347671015,1736047846856,-286.0,0.00019256,2]
[347671017,1736047846866,-286.0,0.00019256,2]
[347671019,1736047846875,-286.0,0.00019256,2]
[347671021,1736047846885,-286.0,0.00019256,2]
[347671023,1736047846894,-286.0,0.00019256,2]
[347671025,1736047846903,-286.0,0.00019256,2]
[347671027,1736047846913,-286.0,0.00019256,2]
[347671029,1736047846923,-286.0,0.00019256,2]
[347671031,1736047846932,-176.0,0.00019256,2]
[347671033,1736047846941,-5126.15905965,0.00019279,2]
[347671035,1736047846951,-2084.0,0.00019285,2]
[347671037,1736047846960,-2321.0,0.00019285,2]
[347671040,1736047846969,-150.0,0.00019285,2]
[347671042,1736047846979,-151.0,0.000193,2]
[347671044,1736047846988,-151.0,0.000193,2]
[347671046,1736047846999,-619.0,0.000193,2]
[347671048,1736047847008,-500.0,0.00019313,3]
[347671050,1736047847018,-2208.73,0.00019313,3]
[347671052,1736047847028,-151.0,0.00019314,2]
[347671054,1736047847037,-151.0,0.00019314,2]
[347671056,1736047847046,-420.0,0.00019352,2]
[347671058,1736047847055,-1046.556816,0.00019358,2]
[347671060,1736047847065,-1046.556816,0.00019358,2]
[347671062,1736047847076,-302.9394212,0.0001938,2]
[347671063,1736047847085,-151.0,0.000194,2]
[347671065,1736047847094,-270.528353,0.000194,2]
[347671068,1736047847104,-270.528353,0.000194,2]
[347671070,1736047847114,-383.698959,0.000194,2]
[347671072,1736047847123,-383.698959,0.000194,2]
[347671074,1736047847133,-178.174336,0.000194,2]
[347671076,1736047847143,-178.174336,0.000194,2]
[347671078,1736047847152,-454.78852,0.00019408,2]
[347671080,1736047847161,-454.78852,0.00019408,2]
[347671082,1736047847171,-151.0,0.00019408,2]
[347671084,1736047847180,-151.0,0.00019408,2]
[347671086,1736047847189,-215.306983,0.00019408,2]
[347671088,1736047847199,-215.306983,0.00019408,2]
[347671090,1736047847208,-191.364666,0.00019408,2]
[347671092,1736047847218,-191.364666,0.00019408,2]
[347671094,1736047847228,-153.0,0.00019408,2]
[347671096,1736047847237,-153.0,0.00019408,2]
[347671098,1736047847246,-153.0,0.00019408,2]
[347671100,1736047847256,-153.0,0.00019408,2]
[347671102,1736047847265,-153.0,0.00019408,2]
[347671104,1736047847274,-153.0,0.00019408,2]
[347671106,1736047847283,-153.0,0.00019408,2]
[347671108,1736047847292,-153.0,0.00019408,2]
[347671110,1736047847301,-153.0,0.00019408,2]
[347671112,1736047847310,-153.0,0.00019408,2]
[347671114,1736047847321,-153.0,0.00019408,2]
[347671116,1736047847330,-153.0,0.00019408,2]
[347671118,1736047847339,-153.0,0.00019408,2]
[347671120,1736047847348,-153.0,0.00019408,2]
[347671122,1736047847357,-153.0,0.00019408,2]
[347671124,1736047847367,-153.0,0.00019408,2]
[347671126,1736047847376,-153.0,0.00019408,2]
[347671128,1736047847385,-153.0,0.00019408,2]
[347671130,1736047847394,-153.0,0.00019408,2]
[347671132,1736047847403,-153.0,0.00019408,2]
[347671134,1736047847412,-153.0,0.00019408,2]
[347671136,1736047847422,-153.0,0.00019408,2]
[347671138,1736047847431,-153.0,0.00019408,2]
[347671140,1736047847440,-153.0,0.00019408,2]
[347671142,1736047847449,-153.0,0.00019408,2]
[347671144,1736047847459,-153.0,0.00019408,2]
[347671146,1736047847468,-153.0,0.00019408,2]
[347671148,1736047847477,-153.0,0.00019408,2]
[347671150,1736047847486,-153.0,0.00019408,2]
[347671152,1736047847495,-153.0,0.00019408,2]
[347671154,1736047847505,-153.0,0.00019408,2]
[347671156,1736047847515,-153.0,0.00019408,2]
[347671158,1736047847524,-153.0,0.00019408,2]
[347671160,1736047847537,-153.0,0.00019408,2]
[347671161,1736047847546,-153.0,0.00019408,2]
[347671164,1736047847556,-153.0,0.00019408,2]
[347671166,1736047847568,-153.0,0.00019408,2]
[347671168,1736047847577,-153.0,0.00019408,2]
[347671170,1736047847586,-153.0,0.00019408,2]
[347671172,1736047847596,-153.0,0.00019408,2]
[347671174,1736047847608,-153.0,0.00019408,2]
[347671176,1736047847617,-153.0,0.00019408,2]
[347671178,1736047847627,-153.0,0.00019408,2]
[347671180,1736047847636,-153.0,0.00019408,2]
[347671182,1736047847645,-153.0,0.00019408,2]
[347671184,1736047847655,-153.0,0.00019408,2]
[347671186,1736047847664,-153.0,0.00019408,2]
[347671188,1736047847674,-153.0,0.00019408,2]
[347671190,1736047847683,-153.0,0.00019408,2]
[347671192,1736047847692,-153.0,0.00019408,2]